bitfinex/quotes_BTCUSD_20250614
["timestamp","ask_amount","ask_price","bid_price","bid_amount"]
[1749874223713,5.33258433,105380.0,105370.0,0.05435185]
[1749874224270,5.33258433,105380.0,105370.0,0.05435186]
[1749874224695,5.33258433,105380.0,105370.0,0.0543533]
[1749874226564,5.33258433,105380.0,105370.0,0.03657353]
[1749874226788,5.33258433,105380.0,105370.0,0.05435578]
[1749874227860,5.33258433,105380.0,105370.0,0.0543561]
[1749874230202,5.33258433,105380.0,105370.0,0.05435718]
[1749874230417,5.33258433,105380.0,105370.0,0.05435717]
[1749874230871,5.33258433,105380.0,105370.0,0.05435731]
[1749874233084,5.33258433,105380.0,105370.0,0.03657353]
[1749874241375,5.33258433,105380.0,105370.0,0.0543653]
[1749874242401,5.33258433,105380.0,105370.0,0.03657353]
[1749874242623,5.33258433,105380.0,105370.0,0.05436648]
[1749874242821,5.33258433,105380.0,105370.0,0.05436869]
[1749874243143,5.36498433,105380.0,105370.0,0.03657353]
[1749874243344,5.36498433,105380.0,105370.0,0.05436891]
[1749874243345,5.46122609,105380.0,105370.0,0.05436891]
[1749874243559,5.46122609,105380.0,105370.0,0.05437065]
[1749874243560,5.80122609,105380.0,105370.0,0.05437065]
[1749874243768,5.80122609,105380.0,105370.0,0.05437235]
[1749874243769,5.82399278,105380.0,105370.0,0.05437235]
[1749874243987,5.82399278,105380.0,105370.0,0.05437237]
[1749874244189,5.82399278,105380.0,105370.0,0.05437247]
[1749874244432,5.82399278,105380.0,105370.0,0.03657353]
[1749874244633,5.80122609,105380.0,105370.0,0.05437247]
[1749874245261,5.80122609,105380.0,105370.0,0.03657353]
[1749874245469,5.80122609,105380.0,105370.0,0.05437247]
[1749874245680,5.80122609,105380.0,105370.0,0.05437258]
[1749874246096,5.80122609,105380.0,105370.0,0.05437262]
[1749874246317,5.80122609,105380.0,105370.0,0.05437259]
[1749874247101,5.80122609,105380.0,105370.0,0.03657353]
[1749874247315,5.80122609,105380.0,105370.0,0.05437258]
[1749874247797,5.80122609,105380.0,105370.0,0.03657353]
[1749874248004,5.80122609,105380.0,105370.0,0.05437258]
[1749874248542,0.86487109,105380.0,105370.0,0.0543726]
[1749874248753,5.80122609,105380.0,105370.0,0.0543726]
[1749874249387,5.80122609,105380.0,105370.0,0.05437259]
[1749874250471,5.80122609,105380.0,105370.0,0.03657353]
[1749874250871,5.80122609,105380.0,105370.0,0.05437261]
[1749874251827,5.80122609,105380.0,105370.0,0.0543726]
[1749874252520,5.80122609,105380.0,105370.0,0.05437259]
[1749874252750,5.80122609,105380.0,105370.0,0.0543726]
[1749874252960,5.80122609,105380.0,105370.0,0.03657353]
[1749874253417,5.80082609,105380.0,105370.0,0.03657353]
[1749874253633,5.13914433,105380.0,105370.0,0.05437191]
[1749874253863,5.33218433,105380.0,105370.0,0.16068891]
[1749874254119,5.33218433,105380.0,105370.0,0.16068823]
[1749874254327,5.33218433,105380.0,105370.0,0.16068773]
[1749874254552,5.33218433,105380.0,105370.0,0.1606877]
[1749874255242,5.17858433,105380.0,105370.0,0.36947547]
[1749874255444,5.33218433,105380.0,105370.0,0.36947547]
[1749874255668,5.33218433,105380.0,105370.0,0.37896538]
[1749874255890,5.33218433,105380.0,105370.0,0.3884553]
[1749874256122,4.949355,105380.0,105370.0,0.38014899]
[1749874256308,0.07141766,105380.0,105370.0,0.45957067]
[1749874256546,0.05095595,105380.0,105370.0,0.45957067]
[1749874256809,0.24411595,105380.0,105370.0,0.45957067]
[1749874257013,0.02248874,105380.0,105370.0,0.45956917]
[1749874257223,0.21564874,105380.0,105370.0,0.39794309]
[1749874257439,0.013,105380.0,105370.0,0.49418485]
[1749874257663,0.06192865,105380.0,105370.0,0.49418485]
[1749874257940,0.07141739,105380.0,105370.0,0.49418485]
[1749874258364,0.08090631,105380.0,105370.0,0.47639012]
[1749874258580,0.07141739,105380.0,105370.0,0.49418468]
[1749874258795,0.07141739,105380.0,105370.0,0.49418436]
[1749874259245,0.07141739,105380.0,105370.0,0.47639012]
[1749874259458,0.07141739,105380.0,105370.0,0.49418438]
[1749874259676,0.07141739,105380.0,105370.0,0.49418419]
[1749874259890,0.07141739,105380.0,105370.0,0.49418451]
[1749874260103,0.05244,105380.0,105370.0,0.47639012]
[1749874260317,0.05244,105380.0,105370.0,0.49418415]
[1749874260529,0.05244,105380.0,105370.0,0.49418408]
[1749874261177,0.05244,105380.0,105370.0,0.49418359]
[1749874261390,0.05244,105380.0,105370.0,0.50488712]
[1749874261602,0.05244,105380.0,105370.0,0.44706259]
[1749874261852,0.05244,105380.0,105370.0,0.44706263]
[1749874262063,0.05244,105380.0,105370.0,0.42926918]
[1749874262304,0.06192883,105380.0,105370.0,0.44706259]
[1749874262515,0.06192883,105380.0,105370.0,0.44706258]
[1749874263010,0.05244,105380.0,105370.0,0.5196676]
[1749874263430,0.05244,105380.0,105370.0,0.46276615]
[1749874263642,0.05244,105380.0,105370.0,0.46276614]
[1749874264066,0.05244,105380.0,105370.0,0.46276616]
[1749874264279,0.05244,105380.0,105370.0,0.44497403]
[1749874264487,0.05244,105380.0,105370.0,0.46276617]
[1749874264700,0.06192883,105380.0,105370.0,0.44706132]
[1749874264929,0.06192883,105380.0,105370.0,0.42926918]
[1749874265136,0.07141766,105380.0,105370.0,0.4470613]
[1749874265366,0.013,105380.0,105370.0,0.44706129]
[1749874265580,0.05244,105380.0,105370.0,0.44706118]
[1749874265792,0.05244,105380.0,105370.0,0.52586774]
[1749874266008,0.05244,105380.0,105370.0,0.5080757]
[1749874266236,0.06192865,105380.0,105370.0,0.52586779]
[1749874266685,0.07141739,105380.0,105370.0,0.5080757]
[1749874267112,0.07141739,105380.0,105370.0,0.42926918]
[1749874267332,0.07141739,105380.0,105370.0,0.44706135]
[1749874267754,0.06961431,105380.0,105370.0,0.447061]
[1749874268225,0.06961431,105380.0,105370.0,0.44706097]
[1749874268679,0.06961431,105380.0,105370.0,0.42926918]
[1749874268881,0.06012557,105380.0,105370.0,0.51223561]
[1749874269144,0.06012557,105380.0,105370.0,0.53002676]
[1749874269349,0.06012557,105380.0,105370.0,0.53002663]
[1749874269779,0.06012557,105380.0,105370.0,0.5300266]
[1749874269995,0.06961431,105380.0,105370.0,0.5300266]
[1749874270428,0.06961431,105380.0,105370.0,0.53002667]
[1749874270614,0.06961431,105380.0,105370.0,0.53002776]
[1749874271059,0.06961431,105380.0,105370.0,0.53002831]
[1749874271270,0.06961431,105380.0,105370.0,0.53002867]
[1749874271480,0.06961431,105380.0,105370.0,0.44706224]
[1749874271691,0.06961431,105380.0,105370.0,0.4470106]
[1749874272421,0.06961431,105380.0,105370.0,0.42926918]
[1749874272632,0.06961431,105380.0,105370.0,0.44701064]
[1749874272842,0.06961431,105380.0,105370.0,0.42926918]
[1749874273065,0.06961431,105380.0,105370.0,0.44701064]
[1749874273278,0.06012557,105380.0,105370.0,0.44701064]
[1749874273686,0.06012557,105380.0,105370.0,0.44701063]
[1749874273902,0.06012557,105380.0,105370.0,0.42926918]
[1749874274127,0.06012557,105380.0,105370.0,0.44701063]
[1749874275225,0.06012557,105380.0,105370.0,0.44701054]
[1749874276188,0.06012557,105380.0,105370.0,0.41631054]
[1749874276410,0.28787148,105380.0,105370.0,0.38784727]
[1749874276623,0.27838283,105380.0,105370.0,0.38784892]
[1749874276835,0.27838283,105380.0,105370.0,0.39733892]
[1749874277058,0.27838283,105380.0,105370.0,0.40682901]
[1749874277485,0.27838283,105380.0,105370.0,0.40682847]
[1749874277700,0.27838283,105380.0,105370.0,0.40683455]
[1749874278259,0.27838283,105380.0,105370.0,0.41632446]
[1749874278686,0.27838283,105380.0,105370.0,0.40683464]
[1749874278898,0.43194283,105380.0,105370.0,0.37836464]
[1749874279115,0.4129649,105380.0,105370.0,0.29161315]
[1749874279346,0.4129649,105380.0,105370.0,0.30110315]
[1749874279557,0.4129649,105380.0,105370.0,0.28334832]
[1749874279762,0.4129649,105380.0,105370.0,0.30110719]
[1749874280203,0.23266431,105380.0,105370.0,0.31059692]
[1749874280419,0.24215377,105380.0,105370.0,0.34169692]
[1749874281609,0.22317503,105380.0,105370.0,0.32393805]
[1749874281797,0.23266431,105380.0,105370.0,0.34169989]
[1749874282031,0.24215368,105380.0,105370.0,0.39859936]
[1749874282239,0.24215368,105380.0,105370.0,0.34169931]
[1749874282452,0.43194301,105380.0,105370.0,0.30110958]
[1749874282663,0.4445649,105380.0,105370.0,0.2821294]
[1749874282880,0.4445649,105380.0,105370.0,0.29162245]
[1749874283089,0.4445649,105380.0,105370.0,0.2631256]
[1749874283297,0.4292649,105380.0,105370.0,0.2631256]
[1749874283942,0.4292649,105380.0,105370.0,0.25363542]
[1749874284164,0.41977562,105380.0,105370.0,0.25363542]
[1749874284597,0.41977562,105380.0,105370.0,0.26312559]
[1749874285043,0.40347562,105380.0,105370.0,0.26312559]
[1749874285353,0.40347562,105380.0,105370.0,0.24536132]
[1749874285564,0.40347562,105380.0,105370.0,0.30226137]
[1749874285792,0.40347562,105380.0,105370.0,0.32002564]
[1749874285979,0.40347562,105380.0,105370.0,0.32002563]
[1749874286201,0.40347562,105380.0,105370.0,0.32003893]
[1749874286755,0.40347562,105380.0,105370.0,0.24536132]
[1749874286983,0.40347562,105380.0,105370.0,0.26313967]
[1749874287422,0.40347562,105380.0,105370.0,0.24536132]
[1749874287673,0.40347562,105380.0,105370.0,0.26313978]
[1749874287877,0.40347562,105380.0,105370.0,0.26313942]
[1749874288297,0.40347562,105380.0,105370.0,0.26313922]
[1749874288506,0.40347562,105380.0,105370.0,0.26313916]
[1749874291285,0.40347562,105380.0,105370.0,0.24536132]
[1749874291521,0.40347562,105380.0,105370.0,0.26313699]
[1749874291929,0.40347562,105380.0,105370.0,0.24536132]
[1749874292140,0.40347562,105380.0,105370.0,0.26313699]
[1749874292345,0.40347562,105380.0,105370.0,0.26313688]
[1749874292761,0.40347562,105380.0,105370.0,0.24536132]
[1749874292970,0.40347562,105380.0,105370.0,0.32003681]
[1749874293177,0.40347562,105380.0,105370.0,0.30226137]
[1749874293437,0.40347562,105380.0,105370.0,0.32003676]
[1749874294930,0.40347562,105380.0,105370.0,0.30226137]
[1749874295144,0.40347562,105380.0,105370.0,0.32003676]
[1749874296414,0.40347562,105380.0,105370.0,0.30226137]
[1749874296963,0.40347562,105380.0,105370.0,0.32003676]
[1749874297369,0.40347562,105380.0,105370.0,0.30226137]
[1749874297551,0.40347562,105380.0,105370.0,0.32003676]
[1749874298846,0.40347562,105380.0,105370.0,0.30226137]
[1749874298990,0.40347562,105380.0,105370.0,0.32952685]
[1749874299191,0.40347562,105380.0,105370.0,0.32795146]
[1749874299395,0.24991562,105380.0,105370.0,0.35254146]
[1749874299646,0.22321476,105380.0,105370.0,0.37980664]
[1749874300057,0.22321476,105380.0,105370.0,0.37980662]
[1749874300254,0.23270368,105380.0,105370.0,0.37980608]
[1749874300459,0.23270368,105380.0,105370.0,0.37980605]
[1749874300666,0.24219296,105380.0,105370.0,0.30513069]
[1749874300878,0.24219296,105380.0,105370.0,0.37978906]
[1749874301513,0.08859296,105380.0,105370.0,0.37978906]
[1749874301716,0.08859296,105380.0,105370.0,0.36201374]
[1749874302578,0.08859296,105380.0,105370.0,0.37979091]
[1749874303233,0.08859296,105380.0,105370.0,0.36201374]
[1749874303447,0.07910359,105380.0,105370.0,0.37979088]
[1749874303706,0.08859278,105380.0,105370.0,0.37979088]
[1749874303921,0.08859278,105380.0,105370.0,0.3797909]
[1749874304133,0.08859278,105380.0,105370.0,0.37979164]
[1749874304798,0.01119692,105380.0,105370.0,0.4760334]
[1749874305011,0.06004566,105380.0,105370.0,0.4760334]
[1749874305454,0.05055692,105380.0,105370.0,0.47604057]
[1749874305691,0.06004557,105380.0,105370.0,0.47604057]
[1749874305902,0.0695344,105380.0,105370.0,0.47604057]
[1749874306112,0.06004557,105380.0,105370.0,0.47604057]
[1749874306333,0.06004557,105380.0,105370.0,0.4582555]
[1749874306584,0.05055692,105380.0,105370.0,0.54778374]
[1749874306834,0.05055692,105380.0,105370.0,0.5843027]
[1749874307052,0.01119692,105380.0,105370.0,0.66016899]
[1749874307278,0.04736,105380.0,105370.0,0.66016899]
[1749874307517,0.04736,105380.0,105370.0,0.64238537]
[1749874307721,0.03936,105380.0,105370.0,0.69004337]
[1749874307937,0.03936,105380.0,105370.0,0.70275549]
[1749874308155,0.03936,105380.0,105370.0,0.71753736]
[1749874308372,0.03936,105380.0,105370.0,0.72153736]
[1749874308791,0.03936,105380.0,105370.0,0.70175549]
[1749874309024,0.03936,105380.0,105370.0,0.70575549]
[1749874309232,0.03936,105380.0,105370.0,0.72353736]
[1749874309442,5.41220933,105400.0,105390.0,0.21823592]
[1749874309654,5.45171233,105400.0,105390.0,0.23601627]
[1749874309863,5.45171233,105400.0,105390.0,0.23601628]
[1749874310107,5.46119972,105400.0,105390.0,0.24564848]
[1749874310306,5.46119972,105400.0,105390.0,0.22786812]
[1749874310744,5.46519972,105400.0,105390.0,0.22786812]
[1749874310946,5.46519972,105400.0,105390.0,0.24564603]
[1749874311358,5.45567224,105400.0,105390.0,0.26304603]
[1749874311561,5.47415963,105400.0,105390.0,0.27814601]
[1749874311769,5.47415963,105400.0,105390.0,0.27814603]
[1749874312267,5.28131963,105400.0,105390.0,0.27814603]
[1749874312449,5.32067963,105400.0,105390.0,0.27814603]
[1749874312800,5.32067963,105400.0,105390.0,0.26036812]
[1749874313128,5.32067963,105400.0,105390.0,0.27815493]
[1749874313537,5.33016711,105400.0,105390.0,0.27815493]
[1749874313764,5.33965468,105400.0,105390.0,0.26305502]
[1749874313975,5.33965468,105400.0,105390.0,0.253567]
[1749874314216,5.33965531,105400.0,105390.0,0.26305512]
[1749874314446,5.33016765,105400.0,105390.0,0.25475632]
[1749874314966,5.33965531,105400.0,105390.0,0.26305512]
[1749874315175,5.33965531,105400.0,105390.0,0.2452683]
[1749874315386,5.33965531,105400.0,105390.0,0.26305513]
[1749874315573,5.33965531,105400.0,105390.0,0.26301415]
[1749874315781,5.33965531,105400.0,105390.0,0.2452683]
[1749874315947,5.3301681,105400.0,105390.0,0.23712604]
[1749874316532,5.51992142,105400.0,105390.0,0.23712604]
[1749874316739,5.51992142,105400.0,105390.0,0.21938019]
[1749874316873,5.51992142,105400.0,105390.0,0.23712604]
[1749874317338,5.51043403,105400.0,105390.0,0.23712604]
[1749874317550,5.51043403,105400.0,105390.0,0.21938019]
[1749874317754,5.51043403,105400.0,105390.0,0.23712604]
[1749874318344,5.51043403,105400.0,105390.0,0.21938028]
[1749874318807,5.51043403,105400.0,105390.0,0.24661424]
[1749874319504,5.51043403,105400.0,105390.0,0.23712613]
[1749874319717,5.51043403,105400.0,105390.0,0.24661433]
[1749874320352,5.51043403,105400.0,105390.0,0.21938028]
[1749874320554,5.51043403,105400.0,105390.0,0.23712613]
[1749874320769,5.51043403,105400.0,105390.0,0.23712614]
[1749874320972,5.51043403,105400.0,105390.0,0.21938028]
[1749874321181,5.51043403,105400.0,105390.0,0.23711849]
[1749874321621,5.51043403,105400.0,105390.0,0.21938028]
[1749874321828,5.50094655,105400.0,105390.0,0.23711849]
[1749874322044,5.50094655,105400.0,105390.0,0.21938028]
[1749874322224,5.50094574,105400.0,105390.0,0.24660651]
[1749874322456,5.51992079,105400.0,105390.0,0.21938028]
[1749874322666,5.51043394,105400.0,105390.0,0.24660668]
[1749874322893,5.50094655,105400.0,105390.0,0.22763019]
[1749874323101,5.50094655,105400.0,105390.0,0.20989199]
[1749874323308,5.18822655,105400.0,105390.0,0.23711858]
[1749874323521,5.38106655,105400.0,105390.0,0.23711858]
[1749874323726,5.37157898,105400.0,105390.0,0.21938037]
[1749874324252,5.37157898,105400.0,105390.0,0.23711849]
[1749874324473,5.36209132,105400.0,105390.0,0.23711849]
[1749874324906,5.36209132,105400.0,105390.0,0.21938037]
[1749874325575,5.36209132,105400.0,105390.0,0.23711849]
[1749874325789,5.36209132,105400.0,105390.0,0.26220678]
[1749874326002,5.36209132,105400.0,105390.0,0.24446866]
[1749874326222,5.36209132,105400.0,105390.0,0.26220678]
[1749874327792,5.36209132,105400.0,105390.0,0.24660678]
[1749874327989,5.36209132,105400.0,105390.0,0.22886866]
[1749874328220,5.36209132,105400.0,105390.0,0.24660678]
[1749874329074,0.42573632,105400.0,105390.0,0.30711943]
[1749874329251,0.42573632,105400.0,105390.0,0.32486686]
[1749874329584,0.42573632,105400.0,105390.0,0.32486685]
[1749874329950,0.42573632,105400.0,105390.0,0.32486683]
[1749874330551,0.42573632,105400.0,105390.0,0.30711943]
[1749874330772,0.42573632,105400.0,105390.0,0.32486683]
[1749874331018,0.27225632,105400.0,105390.0,0.30711943]
[1749874331474,0.27225632,105400.0,105390.0,0.32486683]
[1749874331884,0.27225632,105400.0,105390.0,0.25365686]
[1749874332292,0.27225632,105400.0,105390.0,0.27140426]
[1749874332504,0.27225632,105400.0,105390.0,0.26191606]
[1749874332713,0.27225632,105400.0,105390.0,0.24661606]
[1749874333130,0.27225632,105400.0,105390.0,0.22886866]
[1749874333544,0.27225632,105400.0,105390.0,0.24661606]
[1749874333752,0.27225632,105400.0,105390.0,0.22886866]
[1749874333958,0.27225632,105400.0,105390.0,0.24661606]
[1749874334165,0.27225632,105400.0,105390.0,0.22886866]
[1749874334374,0.27225632,105400.0,105390.0,0.30351582]
[1749874334786,0.27225632,105400.0,105390.0,0.28572521]
[1749874334997,0.27225632,105400.0,105390.0,0.23717098]
[1749874335210,0.27225632,105400.0,105390.0,0.24665927]
[1749874335419,0.23289632,105400.0,105390.0,0.24665927]
[1749874335639,0.27221632,105400.0,105390.0,0.24665926]
[1749874335851,0.27221632,105400.0,105390.0,0.22886866]
[1749874336061,0.2817038,105400.0,105390.0,0.24665926]
[1749874336271,0.2817038,105400.0,105390.0,0.24665927]
[1749874336477,0.2817038,105400.0,105390.0,0.22886866]
[1749874336903,0.2817038,105400.0,105390.0,0.24665927]
[1749874337747,0.2817038,105400.0,105390.0,0.25614747]
[1749874337955,0.2817038,105400.0,105390.0,0.22886866]
[1749874338165,0.2817038,105400.0,105390.0,0.24665927]
[1749874338368,0.2817038,105400.0,105390.0,0.25614747]
[1749874338786,0.11092526,105400.0,105390.0,0.25614747]
[1749874338998,0.10143769,105400.0,105390.0,0.26563558]
[1749874339212,0.09195021,105400.0,105390.0,0.32077288]
[1749874339418,0.11092454,105400.0,105390.0,0.28834711]
[1749874339619,0.12041211,105400.0,105390.0,0.2978351]
[1749874339823,0.11092454,105400.0,105390.0,0.28004407]
[1749874340006,0.10143715,105400.0,105390.0,0.29783465]
[1749874340241,0.11092454,105400.0,105390.0,0.29783465]
[1749874340647,0.11092454,105400.0,105390.0,0.29783464]
[1749874340851,0.11092454,105400.0,105390.0,0.28004407]
[1749874341054,0.10143706,105400.0,105390.0,0.28004407]
[1749874341257,0.11092436,105400.0,105390.0,0.29783465]
[1749874342060,0.12041184,105400.0,105390.0,0.28004407]
[1749874342178,0.11092436,105400.0,105390.0,0.28004407]
[1749874342580,0.11092436,105400.0,105390.0,0.33271149]
[1749874342784,0.11092436,105400.0,105390.0,0.35050206]
[1749874343185,0.11092436,105400.0,105390.0,0.29783464]
[1749874343390,0.10143706,105400.0,105390.0,0.29783464]
[1749874343794,0.10143715,105400.0,105390.0,0.28004407]
[1749874344202,0.10143715,105400.0,105390.0,0.29783152]
[1749874344448,0.10143715,105400.0,105390.0,0.33690062]
[1749874345104,0.10143715,105400.0,105390.0,0.35468794]
[1749874345530,0.10143715,105400.0,105390.0,0.33690062]
[1749874345761,0.09194994,105400.0,105390.0,0.35468763]
[1749874345972,0.11092427,105400.0,105390.0,0.35468763]
[1749874346202,0.11092427,105400.0,105390.0,0.35468762]
[1749874346415,0.11092427,105400.0,105390.0,0.33690062]
[1749874346670,0.11092427,105400.0,105390.0,0.35468762]
[1749874346889,0.11092427,105400.0,105390.0,0.33690062]
[1749874347104,0.10143697,105400.0,105390.0,0.33690062]
[1749874347317,0.11092418,105400.0,105390.0,0.33690062]
[1749874347759,0.11092427,105400.0,105390.0,0.35468762]
[1749874347991,0.11092418,105400.0,105390.0,0.35468762]
[1749874348224,0.10143697,105400.0,105390.0,0.35468745]
[1749874348665,0.10143697,105400.0,105390.0,0.3546875]
[1749874348874,0.11092418,105400.0,105390.0,0.3546875]
[1749874349079,0.11092418,105400.0,105390.0,0.33848749]
[1749874349932,0.11092418,105400.0,105390.0,0.38858749]
[1749874350142,0.11092418,105400.0,105390.0,0.37080062]
[1749874350364,0.11092418,105400.0,105390.0,0.38858748]
[1749874350865,0.13143697,105400.0,105390.0,0.37080062]
[1749874351098,0.13143697,105400.0,105390.0,0.38858566]
[1749874352053,0.14092418,105400.0,105390.0,0.38858566]
[1749874352869,0.14092418,105400.0,105390.0,0.37080062]
[1749874353104,0.14092418,105400.0,105390.0,0.38858567]
[1749874353310,0.13143697,105400.0,105390.0,0.38858567]
[1749874353520,0.14092418,105400.0,105390.0,0.37080062]
[1749874353725,0.14092418,105400.0,105390.0,0.38858567]
[1749874354211,0.13143697,105400.0,105390.0,0.38858567]
[1749874354406,0.13143697,105400.0,105390.0,0.37080062]
[1749874354617,0.13143697,105400.0,105390.0,0.38858567]
[1749874355054,0.12194994,105400.0,105390.0,0.38858562]
[1749874355257,0.13143706,105400.0,105390.0,0.3885856]
[1749874355463,0.12194994,105400.0,105390.0,0.38858559]
[1749874355687,0.13143706,105400.0,105390.0,0.38858559]
[1749874355915,0.13143706,105400.0,105390.0,0.37080062]
[1749874356126,0.13143706,105400.0,105390.0,0.38858551]
[1749874356330,0.13143706,105400.0,105390.0,0.37080062]
[1749874356558,0.13143706,105400.0,105390.0,0.3885855]
[1749874357010,0.13143706,105400.0,105390.0,0.37080062]
[1749874357460,0.13143706,105400.0,105390.0,0.3885855]
[1749874357685,0.13143706,105400.0,105390.0,0.37080062]
[1749874357902,0.13143706,105400.0,105390.0,0.3885855]
[1749874358339,0.13143706,105400.0,105390.0,0.38858548]
[1749874358544,0.10143706,105400.0,105390.0,0.38858548]
[1749874358751,0.09194994,105400.0,105390.0,0.38858543]
[1749874358984,0.10143706,105400.0,105390.0,0.38858728]
[1749874359190,0.082463,105400.0,105390.0,0.54936896]
[1749874359395,0.082463,105400.0,105390.0,0.58215523]
[1749874360014,0.082463,105400.0,105390.0,0.56436896]
[1749874360229,0.082463,105400.0,105390.0,0.58215464]
[1749874362301,0.082463,105400.0,105390.0,0.58215461]
[1749874362760,0.082463,105400.0,105390.0,0.56436896]
[1749874363222,0.082463,105400.0,105390.0,0.58213469]
[1749874363450,0.043143,105400.0,105390.0,0.56436896]
[1749874363666,0.082463,105400.0,105390.0,0.58313035]
[1749874363884,0.082463,105400.0,105390.0,0.65899709]
[1749874364131,0.082463,105400.0,105390.0,0.67676182]
[1749874364369,0.069463,105400.0,105390.0,0.67576181]
[1749874364583,0.069463,105400.0,105390.0,0.70925181]
[1749874364789,0.069463,105400.0,105390.0,0.69148709]
[1749874365005,0.069463,105400.0,105390.0,0.70925182]
[1749874365241,0.069463,105400.0,105390.0,0.69148709]
[1749874365474,0.069463,105400.0,105390.0,0.70925183]
[1749874365900,0.069463,105400.0,105390.0,0.70925184]
[1749874366336,0.069463,105400.0,105390.0,1.04925184]
[1749874366552,0.069463,105400.0,105390.0,1.04925181]
[1749874366773,0.069463,105400.0,105390.0,1.04925142]
[1749874367031,0.069463,105400.0,105390.0,1.04925133]
[1749874367255,0.069463,105400.0,105390.0,1.03148709]
[1749874367487,0.069463,105400.0,105390.0,1.0492513]
[1749874367712,0.069463,105400.0,105390.0,1.03148709]
[1749874368421,0.069463,105400.0,105390.0,1.04925129]
[1749874368651,0.069463,105400.0,105390.0,1.04925125]
[1749874368865,0.069463,105400.0,105390.0,1.04925129]
[1749874369291,0.069463,105400.0,105390.0,1.03148709]
[1749874371021,0.069463,105400.0,105390.0,0.95586915]
[1749874371702,0.069463,105400.0,105390.0,0.87354257]
[1749874380405,0.069463,105400.0,105390.0,0.88808342]
[1749874381291,0.069463,105400.0,105390.0,0.88308342]
[1749874381638,0.069463,105400.0,105390.0,0.89008342]
[1749874387627,0.030143,105400.0,105390.0,0.89008342]
[1749874387853,0.0318,105430.0,105420.0,0.21817382]
[1749874388090,0.07159738,105430.0,105420.0,0.4289739]
[1749874388326,0.0314,105450.0,105440.0,0.21813243]
[1749874388554,0.08034548,105450.0,105440.0,0.37113193]
[1749874388772,0.08034548,105450.0,105440.0,0.42911037]
[1749874388773,0.08982801,105450.0,105440.0,0.42911037]
[1749874388998,0.08982801,105450.0,105440.0,0.58323037]
[1749874389225,0.09931171,105450.0,105440.0,0.49802153]
[1749874389415,0.05999162,105450.0,105440.0,0.46849419]
[1749874389668,5.15756147,105450.0,105440.0,0.01773034]
[1749874389886,0.00948478,105430.0,105420.0,0.26544487]
[1749874390113,0.2415841,105430.0,105420.0,0.1539995]
[1749874390340,0.2415841,105430.0,105420.0,0.01874007]
[1749874390558,5.12605432,105430.0,105410.0,0.4291923]
[1749874390772,0.08016568,105420.0,105410.0,0.38893698]
[1749874390982,0.08016568,105420.0,105410.0,0.59146253]
[1749874390983,0.08965154,105420.0,105410.0,0.59146253]
[1749874391215,0.09913713,105420.0,105410.0,0.44670872]
[1749874391443,0.10862254,105420.0,105410.0,0.56210954]
[1749874391653,0.307825,105420.0,105410.0,0.55262341]
[1749874391881,0.308825,105420.0,105410.0,0.56211039]
[1749874392096,0.11910759,105420.0,105410.0,0.57159652]
[1749874392749,0.11910759,105420.0,105410.0,0.57162553]
[1749874393173,0.11910759,105420.0,105410.0,0.57362553]
[1749874393593,0.11910759,105420.0,105410.0,0.57162553]
[1749874393931,0.11910759,105420.0,105410.0,0.57362553]
[1749874394557,0.11910759,105420.0,105410.0,0.41942553]
[1749874394766,0.10962182,105420.0,105410.0,0.57358553]
[1749874394973,0.10013614,105420.0,105410.0,0.57358553]
[1749874395182,0.10962182,105420.0,105410.0,0.57358553]
[1749874395400,0.10013614,105420.0,105410.0,0.57358553]
[1749874395622,0.10013614,105420.0,105410.0,0.55581339]
[1749874395623,0.10962182,105420.0,105410.0,0.55581339]
[1749874395843,0.10962182,105420.0,105410.0,0.57358553]
[1749874396047,0.10962182,105420.0,105410.0,0.57358593]
[1749874396484,0.10962182,105420.0,105410.0,0.55581339]
[1749874396698,0.10962182,105420.0,105410.0,0.57358606]
[1749874397791,0.10962182,105420.0,105410.0,0.55581339]
[1749874398235,0.10962182,105420.0,105410.0,0.57358606]
[1749874398458,0.10013605,105420.0,105410.0,0.55581339]
[1749874398666,0.10013605,105420.0,105410.0,0.57358566]
[1749874398923,0.10013605,105420.0,105410.0,0.57358553]
[1749874399156,0.09065055,105420.0,105410.0,0.57358553]
[1749874399383,0.10013614,105420.0,105410.0,0.66033844]
[1749874400240,0.09065055,105420.0,105410.0,0.66033844]
[1749874400449,0.10013614,105420.0,105410.0,0.66032691]
[1749874400866,0.10013614,105420.0,105410.0,0.6425663]
[1749874401073,0.10013614,105420.0,105410.0,0.66032691]
[1749874401286,0.10013614,105420.0,105410.0,0.6425663]
[1749874401287,0.09773614,105420.0,105410.0,0.6425663]
[1749874401966,0.09773614,105420.0,105410.0,0.66032691]
[1749874402182,0.09773614,105420.0,105410.0,0.6425663]
[1749874402391,0.09773614,105420.0,105410.0,0.66032691]
[1749874402804,0.09773614,105420.0,105410.0,0.66032684]
[1749874403017,0.08825055,105420.0,105410.0,0.66032684]
[1749874403439,0.09773614,105420.0,105410.0,0.66032684]
[1749874403936,0.09773614,105420.0,105410.0,0.66032945]
[1749874404345,0.09773614,105420.0,105410.0,0.57357654]
[1749874405052,0.09773614,105420.0,105410.0,0.57357656]
[1749874405505,0.09773614,105420.0,105410.0,0.55581339]
[1749874405718,0.09773614,105420.0,105410.0,0.57357656]
[1749874405937,0.09773614,105420.0,105410.0,0.41941656]
[1749874406182,0.09773614,105420.0,105410.0,0.55565339]
[1749874406436,0.09773614,105420.0,105410.0,0.57341657]
[1749874406652,0.09773614,105420.0,105410.0,0.55565339]
[1749874406875,0.09773614,105420.0,105410.0,0.57341656]
[1749874407097,0.08825055,105420.0,105410.0,0.57341656]
[1749874407323,0.09773605,105420.0,105410.0,0.55565339]
[1749874407545,0.08825055,105420.0,105410.0,0.57341656]
[1749874407775,0.08825055,105420.0,105410.0,0.55565339]
[1749874407991,0.08825055,105420.0,105410.0,0.57341656]
[1749874408661,0.09773614,105420.0,105410.0,0.57341656]
[1749874408890,0.08825055,105420.0,105410.0,0.55565339]
[1749874409120,0.08825055,105420.0,105410.0,0.57341656]
[1749874409348,0.09773623,105420.0,105410.0,0.41941656]
[1749874409598,0.08825055,105420.0,105410.0,0.57341656]
[1749874409829,0.09773614,105420.0,105410.0,0.57341655]
[1749874410267,0.09773614,105420.0,105410.0,0.55565339]
[1749874410482,0.09773614,105420.0,105410.0,0.57341656]
[1749874411336,0.09773614,105420.0,105410.0,0.55565339]
[1749874411792,0.09773614,105420.0,105410.0,0.57341656]
[1749874412027,0.09773614,105420.0,105410.0,0.41941656]
[1749874412249,0.10722182,105420.0,105410.0,0.55561339]
[1749874412490,0.10722182,105420.0,105410.0,0.60571339]
[1749874412706,0.10722182,105420.0,105410.0,0.62349741]
[1749874413220,0.10722182,105420.0,105410.0,0.60571339]
[1749874413431,0.10722182,105420.0,105410.0,0.62349739]
[1749874413644,0.11670759,105420.0,105410.0,0.62345739]
[1749874413785,0.10722182,105420.0,105410.0,0.6234574]
[1749874414452,5.21432359,105420.0,105410.0,0.0521]
[1749874414662,5.21432359,105420.0,105410.0,0.06988295]
[1749874414663,5.36828359,105420.0,105410.0,0.06988295]
[1749874415286,5.36828359,105420.0,105410.0,0.0698831]